[Event "Titled Tuesday Blitz December 13 Late 2022"]
[White "Reprintsev, Alexander"]
[Black "Maksimovic, Bojan"]
[WhiteFideId "14100541"]
[BlackFideId "14408120"]
[WhiteElo "2230"]
[BlackElo "2462"]
[Result "0-1"]
[Round "04"]
[TimeControl "180+1"]
[Date "2022.12.14"]
[WhiteClock "0:00:54"]
[BlackClock "0:00:41"]

1. Nc3 {[%clk 0:03:00]}  g6 {[%clk 0:02:55]} 2. d4 {[%clk 0:02:56]}  Nf6 {[%clk 0:02:52]} 3. e4 {[%clk 0:02:56]}  d5 {[%clk 0:02:51]} 4. e5 {[%clk 0:02:51]}  Ne4 {[%clk 0:02:51]} 5. Nxe4 {[%clk 0:02:49]}  dxe4 {[%clk 0:02:51]} 6. Bc4 {[%clk 0:02:48]}  c5 {[%clk 0:02:47]} 7. Ne2 {[%clk 0:02:47]}  Nc6 {[%clk 0:02:29]} 8. c3 {[%clk 0:02:33]}  Bg7 {[%clk 0:02:27]} 9. O-O {[%clk 0:02:32]}  O-O {[%clk 0:02:26]} 10. e6 {[%clk 0:02:24]}  Bxe6 {[%clk 0:02:06]} 11. Bxe6 {[%clk 0:02:24]}  fxe6 {[%clk 0:02:07]} 12. dxc5 {[%clk 0:02:24]}  Qd5 {[%clk 0:01:55]} 13. Be3 {[%clk 0:02:19]}  Rad8 {[%clk 0:01:49]} 14. Qb3 {[%clk 0:02:18]}  Na5 {[%clk 0:01:22]} 15. Qa4 {[%clk 0:02:12]}  Nc4 {[%clk 0:01:22]} 16. Qxa7 {[%clk 0:01:33]}  Ra8 {[%clk 0:01:14]} 17. Qxa8 {[%clk 0:01:17]}  Rxa8 {[%clk 0:01:11]} 18. Rfd1 {[%clk 0:01:16]}  Qc6 {[%clk 0:01:09]} 19. b4 {[%clk 0:01:11]}  Nxe3 {[%clk 0:01:01]} 20. fxe3 {[%clk 0:01:11]}  Bh6 {[%clk 0:01:02]} 21. Nf4 {[%clk 0:01:00]}  Bxf4 {[%clk 0:00:56]} 22. exf4 {[%clk 0:01:01]}  Rf8 {[%clk 0:00:56]} 23. g3 {[%clk 0:01:01]}  e5 {[%clk 0:00:54]} 24. fxe5 {[%clk 0:01:00]}  e3 {[%clk 0:00:54]} 25. Rf1 {[%clk 0:00:54]}  Qe4 {[%clk 0:00:41]} 0-1


[Site "https://www.chess.com"]

[Event "Titled Tuesday Blitz December 13 Late 2022"]
[White "Romero Ruscalleda, Josep"]
[Black "Steenbekkers, Franck"]
[WhiteFideId "2231859"]
[BlackFideId "1004220"]
[WhiteElo "2183"]
[BlackElo "1920"]
[Result "1-0"]
[Round "04"]
[TimeControl "180+1"]
[Date "2022.12.14"]
[WhiteClock "0:00:12"]
[BlackClock "0:00:04"]

1. e4 {[%clk 0:02:57]}  d5 {[%clk 0:00:59]} 2. exd5 {[%clk 0:02:57]}  Nf6 {[%clk 0:00:58]} 3. Nc3 {[%clk 0:02:56]}  Nxd5 {[%clk 0:00:58]} 4. Bc4 {[%clk 0:02:56]}  Nb6 {[%clk 0:00:56]} 5. Bb3 {[%clk 0:02:54]}  Nc6 {[%clk 0:00:56]} 6. a3 {[%clk 0:02:41]}  Bf5 {[%clk 0:00:52]} 7. Nf3 {[%clk 0:02:40]}  e6 {[%clk 0:00:52]} 8. O-O {[%clk 0:02:38]}  Bd6 {[%clk 0:00:52]} 9. d4 {[%clk 0:02:38]}  h6 {[%clk 0:00:51]} 10. Be3 {[%clk 0:02:35]}  Qf6 {[%clk 0:00:48]} 11. Re1 {[%clk 0:02:27]}  O-O-O {[%clk 0:00:47]} 12. Qe2 {[%clk 0:02:06]}  g5 {[%clk 0:00:45]} 13. d5 {[%clk 0:01:46]}  exd5 {[%clk 0:00:41]} 14. Bxb6 {[%clk 0:01:45]}  axb6 {[%clk 0:00:38]} 15. Nxd5 {[%clk 0:01:45]}  Qg6 {[%clk 0:00:36]} 16. Qc4 {[%clk 0:01:26]}  g4 {[%clk 0:00:32]} 17. Nh4 {[%clk 0:01:25]}  Qg5 {[%clk 0:00:30]} 18. Nxf5 {[%clk 0:01:24]}  Qxf5 {[%clk 0:00:30]} 19. Rad1 {[%clk 0:01:12]}  Na5 {[%clk 0:00:28]} 20. Qc3 {[%clk 0:00:39]}  Nxb3 {[%clk 0:00:27]} 21. Nxb6+ {[%clk 0:00:27]}  Kb8 {[%clk 0:00:26]} 22. cxb3 {[%clk 0:00:27]}  cxb6 {[%clk 0:00:25]} 23. Rxd6 {[%clk 0:00:27]}  Rhe8 {[%clk 0:00:18]} 24. Rxd8+ {[%clk 0:00:18]}  Rxd8 {[%clk 0:00:17]} 25. h3 {[%clk 0:00:18]}  gxh3 {[%clk 0:00:14]} 26. gxh3 {[%clk 0:00:16]}  Rg8+ {[%clk 0:00:13]} 27. Kf1 {[%clk 0:00:15]}  Qf4 {[%clk 0:00:11]} 28. Qe5+ {[%clk 0:00:15]}  Qxe5 {[%clk 0:00:10]} 29. Rxe5 {[%clk 0:00:16]}  Rc8 {[%clk 0:00:08]} 30. Re7 {[%clk 0:00:14]}  Rc1+ {[%clk 0:00:08]} 31. Kg2 {[%clk 0:00:14]}  Rc2 {[%clk 0:00:08]} 32. Rxf7 {[%clk 0:00:15]}  Rxb2 {[%clk 0:00:08]} 33. Rf3 {[%clk 0:00:14]}  b5 {[%clk 0:00:07]} 34. b4 {[%clk 0:00:13]}  Rc2 {[%clk 0:00:06]} 35. Kg3 {[%clk 0:00:13]}  Rc6 {[%clk 0:00:05]} 36. Kh4 {[%clk 0:00:12]}  Rf6 {[%clk 0:00:04]} 37. Rxf6 {[%clk 0:00:12]} 1-0


[Site "https://www.chess.com"]

[Event "Titled Tuesday Blitz December 13 Late 2022"]
[White "Rustemov, Alexander"]
[Black "Abasov, Nijat"]
[WhiteFideId "4119002"]
[BlackFideId "13402960"]
[WhiteElo "2770"]
[BlackElo "2546"]
[Result "1/2-1/2"]
[Round "04"]
[TimeControl "180+1"]
[Date "2022.12.13"]
[WhiteClock "0:00:14"]
[BlackClock "0:00:04"]

1. d4 {[%clk 0:02:59]}  Nf6 {[%clk 0:03:00]} 2. c4 {[%clk 0:02:57]}  e6 {[%clk 0:03:01]} 3. Nf3 {[%clk 0:02:58]}  b6 {[%clk 0:03:01]} 4. a3 {[%clk 0:02:57]}  Bb7 {[%clk 0:03:01]} 5. Nc3 {[%clk 0:02:57]}  d5 {[%clk 0:03:02]} 6. Bg5 {[%clk 0:02:57]}  Be7 {[%clk 0:02:59]} 7. Bxf6 {[%clk 0:02:57]}  Bxf6 {[%clk 0:03:00]} 8. cxd5 {[%clk 0:02:58]}  exd5 {[%clk 0:03:01]} 9. Qa4+ {[%clk 0:02:59]}  Qd7 {[%clk 0:02:52]} 10. Qxd7+ {[%clk 0:02:56]}  Nxd7 {[%clk 0:02:53]} 11. e3 {[%clk 0:02:56]}  a6 {[%clk 0:02:36]} 12. b4 {[%clk 0:02:55]}  O-O {[%clk 0:02:20]} 13. Bd3 {[%clk 0:02:52]}  Rfe8 {[%clk 0:02:20]} 14. Kd2 {[%clk 0:02:48]}  g6 {[%clk 0:02:21]} 15. a4 {[%clk 0:02:47]}  a5 {[%clk 0:02:18]} 16. b5 {[%clk 0:02:44]}  Nf8 {[%clk 0:02:16]} 17. Rhc1 {[%clk 0:02:42]}  Ne6 {[%clk 0:02:15]} 18. Rc2 {[%clk 0:02:40]}  Be7 {[%clk 0:02:16]} 19. Rac1 {[%clk 0:02:38]}  Ba3 {[%clk 0:02:14]} 20. Ra1 {[%clk 0:02:35]}  Bb4 {[%clk 0:02:15]} 21. Kc1 {[%clk 0:02:24]}  f6 {[%clk 0:02:11]} 22. Kb2 {[%clk 0:02:24]}  Kf7 {[%clk 0:02:09]} 23. Rac1 {[%clk 0:02:25]}  Re7 {[%clk 0:02:03]} 24. g3 {[%clk 0:02:25]}  Rd8 {[%clk 0:01:53]} 25. Bf1 {[%clk 0:02:24]}  Ng5 {[%clk 0:01:31]} 26. Bg2 {[%clk 0:02:21]}  Ne4 {[%clk 0:01:16]} 27. Nxe4 {[%clk 0:02:19]}  dxe4 {[%clk 0:01:17]} 28. Nd2 {[%clk 0:02:02]}  Rdd7 {[%clk 0:01:14]} 29. Bh3 {[%clk 0:01:42]}  f5 {[%clk 0:00:56]} 30. Nc4 {[%clk 0:01:40]}  Bd6 {[%clk 0:00:55]} 31. Bf1 {[%clk 0:01:30]}  Kf6 {[%clk 0:00:54]} 32. h4 {[%clk 0:01:22]}  h5 {[%clk 0:00:52]} 33. Be2 {[%clk 0:01:22]}  Rg7 {[%clk 0:00:46]} 34. Nd2 {[%clk 0:01:09]}  Bd5 {[%clk 0:00:41]} 35. Bc4 {[%clk 0:01:08]}  Bb7 {[%clk 0:00:41]} 36. Nb1 {[%clk 0:01:07]}  g5 {[%clk 0:00:40]} 37. Rh1 {[%clk 0:01:05]}  Rh7 {[%clk 0:00:20]} 38. Nc3 {[%clk 0:01:03]}  Rdg7 {[%clk 0:00:19]} 39. hxg5+ {[%clk 0:00:53]}  Rxg5 {[%clk 0:00:20]} 40. Rh4 {[%clk 0:00:53]}  Rg4 {[%clk 0:00:20]} 41. Rxg4 {[%clk 0:00:48]}  hxg4 {[%clk 0:00:21]} 42. Bd5 {[%clk 0:00:43]}  Bc8 {[%clk 0:00:21]} 43. Ne2 {[%clk 0:00:38]}  Rh2 {[%clk 0:00:19]} 44. Nf4 {[%clk 0:00:38]}  Bd7 {[%clk 0:00:19]} 45. Bc4 {[%clk 0:00:32]}  Kg5 {[%clk 0:00:17]} 46. Ne6+ {[%clk 0:00:30]}  Bxe6 {[%clk 0:00:17]} 47. Bxe6 {[%clk 0:00:30]}  Kf6 {[%clk 0:00:18]} 48. Bd7 {[%clk 0:00:29]}  Kg5 {[%clk 0:00:17]} 49. Kb3 {[%clk 0:00:29]}  Kf6 {[%clk 0:00:16]} 50. Bc8 {[%clk 0:00:29]}  Kg5 {[%clk 0:00:16]} 51. Be6 {[%clk 0:00:25]}  Kf6 {[%clk 0:00:16]} 52. Bd7 {[%clk 0:00:24]}  Kg6 {[%clk 0:00:14]} 53. Bc8 {[%clk 0:00:24]}  Kf6 {[%clk 0:00:15]} 54. Bd7 {[%clk 0:00:24]}  Rh1 {[%clk 0:00:14]} 55. Ra2 {[%clk 0:00:19]}  Rf1 {[%clk 0:00:12]} 56. Kc4 {[%clk 0:00:19]}  Bb4 {[%clk 0:00:11]} 57. Kd5 {[%clk 0:00:16]}  Rc1 {[%clk 0:00:11]} 58. Bc8 {[%clk 0:00:14]}  Be1 {[%clk 0:00:08]} 59. Bd7 {[%clk 0:00:14]}  Bb4 {[%clk 0:00:04]} 60. Bc8 {[%clk 0:00:14]}  Be1 {[%clk 0:00:03]} 61. Bd7 {[%clk 0:00:14]}  Bb4 {[%clk 0:00:04]} 1/2-1/2


[Site "https://www.chess.com"]

[Event "Titled Tuesday Blitz December 13 Late 2022"]
[White "Santos Flores, Alberto"]
[Black "Lashkin, Jegor"]
[WhiteFideId "3601234"]
[BlackFideId "13907808"]
[WhiteElo "2235"]
[BlackElo "2368"]
[Result "0-1"]
[Round "04"]
[TimeControl "180+1"]
[Date "2022.12.13"]
[WhiteClock "0:00:44"]
[BlackClock "0:02:17"]

1. d4 {[%clk 0:03:00]}  d5 {[%clk 0:03:00]} 2. Nf3 {[%clk 0:03:00]}  Nf6 {[%clk 0:02:59]} 3. c4 {[%clk 0:03:00]}  e6 {[%clk 0:03:00]} 4. Nc3 {[%clk 0:03:00]}  c5 {[%clk 0:03:00]} 5. e3 {[%clk 0:02:59]}  a6 {[%clk 0:02:59]} 6. a4 {[%clk 0:02:54]}  Nc6 {[%clk 0:02:57]} 7. dxc5 {[%clk 0:02:48]}  Bxc5 {[%clk 0:02:56]} 8. cxd5 {[%clk 0:02:49]}  exd5 {[%clk 0:02:56]} 9. Be2 {[%clk 0:02:44]}  O-O {[%clk 0:02:56]} 10. O-O {[%clk 0:02:43]}  Re8 {[%clk 0:02:57]} 11. b3 {[%clk 0:02:33]}  d4 {[%clk 0:02:46]} 12. exd4 {[%clk 0:02:31]}  Nxd4 {[%clk 0:02:47]} 13. Nxd4 {[%clk 0:02:26]}  Qxd4 {[%clk 0:02:48]} 14. Bb2 {[%clk 0:01:49]}  Qh4 {[%clk 0:02:49]} 15. Bf3 {[%clk 0:01:44]}  Bg4 {[%clk 0:02:37]} 16. Nd5 {[%clk 0:01:35]}  Ne4 {[%clk 0:02:19]} 17. g3 {[%clk 0:00:58]}  Nxg3 {[%clk 0:02:19]} 18. Bxg4 {[%clk 0:00:47]}  Nxf1 {[%clk 0:02:18]} 19. Kxf1 {[%clk 0:00:44]}  Qxf2# {[%clk 0:02:17]} 0-1


[Site "https://www.chess.com"]

[Event "Titled Tuesday Blitz December 13 Late 2022"]
[White "Sargsyan, Anna M."]
[Black "Grot, Blazej"]
[WhiteFideId "13308130"]
[BlackFideId "21835845"]
[WhiteElo "2284"]
[BlackElo "1823"]
[Result "1-0"]
[Round "04"]
[TimeControl "180+1"]
[Date "2022.12.14"]
[WhiteClock "0:01:33"]
[BlackClock "0:00:07"]

1. d4 {[%clk 0:03:00]}  d6 {[%clk 0:02:58]} 2. e4 {[%clk 0:02:59]}  Nf6 {[%clk 0:02:57]} 3. Nc3 {[%clk 0:02:57]}  e5 {[%clk 0:02:57]} 4. Nf3 {[%clk 0:02:55]}  Nbd7 {[%clk 0:02:56]} 5. Bc4 {[%clk 0:02:54]}  Be7 {[%clk 0:02:56]} 6. O-O {[%clk 0:02:51]}  O-O {[%clk 0:02:56]} 7. Re1 {[%clk 0:02:50]}  c6 {[%clk 0:02:56]} 8. a4 {[%clk 0:02:48]}  Qc7 {[%clk 0:02:56]} 9. h3 {[%clk 0:02:47]}  a6 {[%clk 0:02:34]} 10. a5 {[%clk 0:02:38]}  exd4 {[%clk 0:02:26]} 11. Nxd4 {[%clk 0:02:37]}  Ne5 {[%clk 0:02:27]} 12. Bf1 {[%clk 0:02:30]}  Re8 {[%clk 0:02:09]} 13. Be3 {[%clk 0:02:27]}  Bf8 {[%clk 0:02:03]} 14. f4 {[%clk 0:02:25]}  Ng6 {[%clk 0:02:00]} 15. Qf3 {[%clk 0:02:25]}  b6 {[%clk 0:01:26]} 16. axb6 {[%clk 0:02:14]}  Qxb6 {[%clk 0:01:27]} 17. b3 {[%clk 0:02:03]}  c5 {[%clk 0:01:13]} 18. Nf5 {[%clk 0:02:00]}  Qb4 {[%clk 0:00:53]} 19. Bd2 {[%clk 0:01:56]}  Bxf5 {[%clk 0:00:31]} 20. exf5 {[%clk 0:01:54]}  Qd4+ {[%clk 0:00:31]} 21. Qf2 {[%clk 0:01:51]}  Ne7 {[%clk 0:00:14]} 22. Qxd4 {[%clk 0:01:42]}  cxd4 {[%clk 0:00:15]} 23. Ne4 {[%clk 0:01:42]}  Nxe4 {[%clk 0:00:14]} 24. Rxe4 {[%clk 0:01:43]}  Nxf5 {[%clk 0:00:14]} 25. Rxe8 {[%clk 0:01:42]}  Rxe8 {[%clk 0:00:15]} 26. Rxa6 {[%clk 0:01:41]}  Ne3 {[%clk 0:00:14]} 27. Bd3 {[%clk 0:01:41]}  d5 {[%clk 0:00:10]} 28. Kf2 {[%clk 0:01:35]}  Bd6 {[%clk 0:00:09]} 29. Rxd6 {[%clk 0:01:33]}  Rc8 {[%clk 0:00:08]} 30. Bxe3 {[%clk 0:01:32]}  dxe3+ {[%clk 0:00:07]} 31. Kxe3 {[%clk 0:01:33]} 1-0


[Site "https://www.chess.com"]

[Event "Titled Tuesday Blitz December 13 Late 2022"]
[White "Seletsky, Grigory"]
[Black "Marcolino, Daniel Mattos"]
[WhiteFideId "14112191"]
[BlackFideId "2106841"]
[WhiteElo "2492"]
[BlackElo "2131"]
[Result "0-1"]
[Round "04"]
[TimeControl "180+1"]
[Date "2022.12.14"]
[WhiteClock "0:00:00"]
[BlackClock "0:00:10"]

1. d4 {[%clk 0:03:00]}  Nf6 {[%clk 0:03:00]} 2. c4 {[%clk 0:03:00]}  e6 {[%clk 0:03:00]} 3. Bg5 {[%clk 0:02:57]}  d5 {[%clk 0:02:58]} 4. Nc3 {[%clk 0:02:56]}  dxc4 {[%clk 0:02:48]} 5. e4 {[%clk 0:02:55]}  h6 {[%clk 0:02:46]} 6. Bxf6 {[%clk 0:02:53]}  Qxf6 {[%clk 0:02:46]} 7. Bxc4 {[%clk 0:02:53]}  Bb4 {[%clk 0:02:47]} 8. Nf3 {[%clk 0:02:52]}  O-O {[%clk 0:02:46]} 9. O-O {[%clk 0:02:51]}  b6 {[%clk 0:02:45]} 10. Qe2 {[%clk 0:02:49]}  Bb7 {[%clk 0:02:45]} 11. Rac1 {[%clk 0:02:48]}  Nd7 {[%clk 0:02:40]} 12. a3 {[%clk 0:02:37]}  Bxc3 {[%clk 0:02:40]} 13. Rxc3 {[%clk 0:02:37]}  c5 {[%clk 0:02:40]} 14. dxc5 {[%clk 0:02:33]}  Nxc5 {[%clk 0:02:38]} 15. Re3 {[%clk 0:02:33]}  e5 {[%clk 0:02:23]} 16. b4 {[%clk 0:02:25]}  Ne6 {[%clk 0:02:21]} 17. Bxe6 {[%clk 0:02:21]}  Qxe6 {[%clk 0:02:21]} 18. Rc1 {[%clk 0:02:18]}  Rac8 {[%clk 0:02:19]} 19. Rec3 {[%clk 0:02:17]}  Rxc3 {[%clk 0:02:16]} 20. Rxc3 {[%clk 0:02:17]}  Rc8 {[%clk 0:02:16]} 21. Rxc8+ {[%clk 0:02:12]}  Bxc8 {[%clk 0:02:17]} 22. h3 {[%clk 0:02:11]}  Qd6 {[%clk 0:01:46]} 23. Qc2 {[%clk 0:02:08]}  Bb7 {[%clk 0:01:39]} 24. Qc3 {[%clk 0:01:59]}  Qc6 {[%clk 0:01:30]} 25. Qxc6 {[%clk 0:01:50]}  Bxc6 {[%clk 0:01:31]} 26. Nd2 {[%clk 0:01:48]}  Kf8 {[%clk 0:01:26]} 27. f3 {[%clk 0:01:48]}  Ke7 {[%clk 0:01:26]} 28. Kf2 {[%clk 0:01:48]}  Kd6 {[%clk 0:01:26]} 29. Ke3 {[%clk 0:01:48]}  Bb5 {[%clk 0:01:23]} 30. h4 {[%clk 0:01:47]}  Kc6 {[%clk 0:01:18]} 31. Nb1 {[%clk 0:01:44]}  Bf1 {[%clk 0:01:13]} 32. Kf2 {[%clk 0:01:44]}  Bc4 {[%clk 0:01:09]} 33. Nc3 {[%clk 0:01:44]}  a5 {[%clk 0:01:09]} 34. Ke3 {[%clk 0:01:44]}  axb4 {[%clk 0:01:03]} 35. axb4 {[%clk 0:01:45]}  Bf1 {[%clk 0:01:02]} 36. g3 {[%clk 0:01:45]}  Bg2 {[%clk 0:00:57]} 37. f4 {[%clk 0:01:41]}  exf4+ {[%clk 0:00:56]} 38. gxf4 {[%clk 0:01:39]}  Bh3 {[%clk 0:00:38]} 39. e5 {[%clk 0:01:26]}  Bf5 {[%clk 0:00:34]} 40. Kd4 {[%clk 0:01:26]}  Bc2 {[%clk 0:00:17]} 41. Ne2 {[%clk 0:01:12]}  Bf5 {[%clk 0:00:15]} 42. Ng3 {[%clk 0:01:07]}  Bc8 {[%clk 0:00:12]} 43. Nh5 {[%clk 0:01:03]}  g6 {[%clk 0:00:11]} 44. Nf6 {[%clk 0:01:03]}  Be6 {[%clk 0:00:10]} 45. Ng8 {[%clk 0:01:00]}  h5 {[%clk 0:00:09]} 46. Nf6 {[%clk 0:01:00]}  Kb5 {[%clk 0:00:10]} 47. Kc3 {[%clk 0:01:00]}  Kc6 {[%clk 0:00:10]} 48. Kd4 {[%clk 0:00:52]}  Ba2 {[%clk 0:00:11]} 49. Ne4 {[%clk 0:00:50]}  Be6 {[%clk 0:00:11]} 50. Nc3 {[%clk 0:00:45]}  Bf5 {[%clk 0:00:11]} 51. b5+ {[%clk 0:00:43]}  Kc7 {[%clk 0:00:09]} 52. Nd5+ {[%clk 0:00:41]}  Kb7 {[%clk 0:00:09]} 53. Ne3 {[%clk 0:00:37]}  Be6 {[%clk 0:00:09]} 54. Kc3 {[%clk 0:00:36]}  Kc7 {[%clk 0:00:09]} 55. Kb4 {[%clk 0:00:35]}  Kb7 {[%clk 0:00:09]} 56. Nf1 {[%clk 0:00:30]}  Kc7 {[%clk 0:00:10]} 57. Nd2 {[%clk 0:00:31]}  Kb7 {[%clk 0:00:09]} 58. Nf3 {[%clk 0:00:30]}  Kc7 {[%clk 0:00:10]} 59. Nd4 {[%clk 0:00:30]}  Bg4 {[%clk 0:00:10]} 60. Kc3 {[%clk 0:00:30]}  Bh3 {[%clk 0:00:10]} 61. Kd3 {[%clk 0:00:30]}  Bf1+ {[%clk 0:00:09]} 62. Ke3 {[%clk 0:00:29]}  Kd7 {[%clk 0:00:09]} 63. Ke4 {[%clk 0:00:26]}  Bc4 {[%clk 0:00:08]} 64. f5 {[%clk 0:00:25]}  gxf5+ {[%clk 0:00:06]} 65. Kxf5 {[%clk 0:00:23]}  Bd3+ {[%clk 0:00:07]} 66. Kg5 {[%clk 0:00:22]}  Ke7 {[%clk 0:00:07]} 67. Kxh5 {[%clk 0:00:22]}  f6 {[%clk 0:00:07]} 68. exf6+ {[%clk 0:00:17]}  Kxf6 {[%clk 0:00:08]} 69. Kg4 {[%clk 0:00:15]}  Ke5 {[%clk 0:00:08]} 70. Nf3+ {[%clk 0:00:09]}  Kd5 {[%clk 0:00:08]} 71. h5 {[%clk 0:00:09]}  Bxb5 {[%clk 0:00:09]} 72. h6 {[%clk 0:00:05]}  Bd3 {[%clk 0:00:09]} 73. Kf4 {[%clk 0:00:02]}  b5 {[%clk 0:00:09]} 74. Nh4 {[%clk 0:00:00]}  b4 {[%clk 0:00:10]} 0-1


[Site "https://www.chess.com"]

[Event "Titled Tuesday Blitz December 13 Late 2022"]
[White "Shapiro, Daniel"]
[Black "Han, Yichen"]
[WhiteFideId "2001780"]
[BlackFideId "1054430"]
[WhiteElo "2366"]
[BlackElo "2323"]
[Result "0-1"]
[Round "04"]
[TimeControl "180+1"]
[Date "2022.12.14"]
[WhiteClock "0:00:11"]
[BlackClock "0:00:29"]

1. d4 {[%clk 0:03:00]}  g6 {[%clk 0:02:56]} 2. e4 {[%clk 0:03:00]}  Bg7 {[%clk 0:02:53]} 3. Nc3 {[%clk 0:03:00]}  c6 {[%clk 0:02:51]} 4. h3 {[%clk 0:02:55]}  d5 {[%clk 0:02:50]} 5. e5 {[%clk 0:02:54]}  c5 {[%clk 0:02:44]} 6. f4 {[%clk 0:02:48]}  Nc6 {[%clk 0:02:35]} 7. Nf3 {[%clk 0:02:46]}  Nh6 {[%clk 0:02:30]} 8. g4 {[%clk 0:02:39]}  f6 {[%clk 0:02:27]} 9. Be3 {[%clk 0:02:19]}  O-O {[%clk 0:02:18]} 10. Qd2 {[%clk 0:02:14]}  fxe5 {[%clk 0:02:15]} 11. fxe5 {[%clk 0:01:59]}  Rxf3 {[%clk 0:02:08]} 12. Bxh6 {[%clk 0:01:59]}  Nxd4 {[%clk 0:01:55]} 13. Bxg7 {[%clk 0:01:48]}  Kxg7 {[%clk 0:01:54]} 14. Bg2 {[%clk 0:01:42]}  Be6 {[%clk 0:01:32]} 15. O-O-O {[%clk 0:01:38]}  Rf8 {[%clk 0:01:30]} 16. h4 {[%clk 0:01:26]}  Bxg4 {[%clk 0:01:29]} 17. Rdg1 {[%clk 0:01:22]}  Bh5 {[%clk 0:01:28]} 18. Bxd5 {[%clk 0:01:19]}  Nf3 {[%clk 0:01:25]} 19. Qe3 {[%clk 0:00:53]}  Nxg1 {[%clk 0:01:22]} 20. Rxg1 {[%clk 0:00:53]}  e6 {[%clk 0:01:15]} 21. Bxe6 {[%clk 0:00:45]}  Qd4 {[%clk 0:01:14]} 22. Qxd4 {[%clk 0:00:31]}  cxd4 {[%clk 0:01:14]} 23. Nb5 {[%clk 0:00:32]}  Rae8 {[%clk 0:01:09]} 24. Nxd4 {[%clk 0:00:24]}  Rf4 {[%clk 0:01:06]} 25. c3 {[%clk 0:00:22]}  Rxd4 {[%clk 0:00:59]} 26. cxd4 {[%clk 0:00:23]}  Rxe6 {[%clk 0:01:00]} 27. Kd2 {[%clk 0:00:23]}  Re8 {[%clk 0:00:56]} 28. Rc1 {[%clk 0:00:23]}  Re7 {[%clk 0:00:53]} 29. Ke3 {[%clk 0:00:21]}  h6 {[%clk 0:00:51]} 30. Ke4 {[%clk 0:00:20]}  Rf7 {[%clk 0:00:45]} 31. d5 {[%clk 0:00:18]}  Bf3+ {[%clk 0:00:45]} 32. Kd4 {[%clk 0:00:18]}  Rf4+ {[%clk 0:00:45]} 33. Ke3 {[%clk 0:00:17]}  Rf8 {[%clk 0:00:43]} 34. Kd4 {[%clk 0:00:17]}  g5 {[%clk 0:00:35]} 35. Rc7+ {[%clk 0:00:16]}  Rf7 {[%clk 0:00:35]} 36. d6 {[%clk 0:00:16]}  Rxc7 {[%clk 0:00:31]} 37. dxc7 {[%clk 0:00:16]}  Bg4 {[%clk 0:00:32]} 38. hxg5 {[%clk 0:00:16]}  hxg5 {[%clk 0:00:31]} 39. Kd5 {[%clk 0:00:17]}  Kf7 {[%clk 0:00:32]} 40. Kd6 {[%clk 0:00:18]}  Bc8 {[%clk 0:00:30]} 41. e6+ {[%clk 0:00:13]}  Bxe6 {[%clk 0:00:30]} 42. Ke5 {[%clk 0:00:14]}  Ke7 {[%clk 0:00:30]} 43. a4 {[%clk 0:00:12]}  Bh3 {[%clk 0:00:29]} 44. b4 {[%clk 0:00:12]}  Kd7 {[%clk 0:00:30]} 45. b5 {[%clk 0:00:11]}  Kxc7 {[%clk 0:00:29]} 0-1


[Site "https://www.chess.com"]

[Event "Titled Tuesday Blitz December 13 Late 2022"]
[White "Stanisz, Patryk"]
[Black "Mazurkiewicz, Michal"]
[WhiteFideId "1123106"]
[BlackFideId "1124943"]
[WhiteElo "2069"]
[BlackElo "2081"]
[Result "1-0"]
[Round "04"]
[TimeControl "180+1"]
[Date "2022.12.14"]
[WhiteClock "0:00:17"]
[BlackClock "0:00:10"]

1. Nf3 {[%clk 0:03:00]}  Nf6 {[%clk 0:02:59]} 2. g3 {[%clk 0:02:57]}  g6 {[%clk 0:03:00]} 3. Bg2 {[%clk 0:02:58]}  Bg7 {[%clk 0:03:00]} 4. O-O {[%clk 0:02:59]}  O-O {[%clk 0:03:01]} 5. c4 {[%clk 0:02:59]}  d6 {[%clk 0:03:01]} 6. Nc3 {[%clk 0:02:59]}  c5 {[%clk 0:03:01]} 7. b3 {[%clk 0:02:59]}  Ne4 {[%clk 0:02:57]} 8. Bb2 {[%clk 0:02:57]}  Nxc3 {[%clk 0:02:57]} 9. Bxc3 {[%clk 0:02:58]}  Bxc3 {[%clk 0:02:56]} 10. dxc3 {[%clk 0:02:59]}  Nc6 {[%clk 0:02:52]} 11. h4 {[%clk 0:02:58]}  Bg4 {[%clk 0:02:38]} 12. Qd2 {[%clk 0:02:57]}  Qd7 {[%clk 0:02:28]} 13. Nh2 {[%clk 0:02:37]}  Bh3 {[%clk 0:02:16]} 14. Qh6 {[%clk 0:02:30]}  Ne5 {[%clk 0:02:06]} 15. Rad1 {[%clk 0:02:12]}  Bxg2 {[%clk 0:02:05]} 16. Kxg2 {[%clk 0:02:08]}  Ng4 {[%clk 0:02:05]} 17. Nxg4 {[%clk 0:02:04]}  Qxg4 {[%clk 0:02:06]} 18. f3 {[%clk 0:01:56]}  Qe6 {[%clk 0:02:06]} 19. e4 {[%clk 0:01:55]}  Qe5 {[%clk 0:02:00]} 20. h5 {[%clk 0:01:37]}  Qxc3 {[%clk 0:01:56]} 21. Rd5 {[%clk 0:01:07]}  a5 {[%clk 0:01:31]} 22. e5 {[%clk 0:00:42]}  e6 {[%clk 0:01:12]} 23. hxg6 {[%clk 0:00:31]}  fxg6 {[%clk 0:01:01]} 24. Rxd6 {[%clk 0:00:31]}  Qxe5 {[%clk 0:01:00]} 25. Rd7 {[%clk 0:00:31]}  Rf7 {[%clk 0:00:37]} 26. Rxf7 {[%clk 0:00:31]}  Kxf7 {[%clk 0:00:38]} 27. Qxh7+ {[%clk 0:00:32]}  Qg7 {[%clk 0:00:39]} 28. Qxg7+ {[%clk 0:00:32]}  Kxg7 {[%clk 0:00:40]} 29. Rd1 {[%clk 0:00:32]}  a4 {[%clk 0:00:39]} 30. Rd7+ {[%clk 0:00:31]}  Kf6 {[%clk 0:00:39]} 31. Rxb7 {[%clk 0:00:32]}  axb3 {[%clk 0:00:39]} 32. axb3 {[%clk 0:00:33]}  Ra2+ {[%clk 0:00:38]} 33. Kh3 {[%clk 0:00:32]}  g5 {[%clk 0:00:33]} 34. Kg4 {[%clk 0:00:32]}  Rb2 {[%clk 0:00:32]} 35. Rb5 {[%clk 0:00:31]}  Rb1 {[%clk 0:00:32]} 36. Rxc5 {[%clk 0:00:23]}  Rxb3 {[%clk 0:00:32]} 37. Rxg5 {[%clk 0:00:23]}  e5 {[%clk 0:00:26]} 38. Rh5 {[%clk 0:00:19]}  Kg6 {[%clk 0:00:13]} 39. Rxe5 {[%clk 0:00:17]}  Rb4 {[%clk 0:00:13]} 40. Re4 {[%clk 0:00:17]}  Kf6 {[%clk 0:00:13]} 41. Kf4 {[%clk 0:00:17]}  Rb1 {[%clk 0:00:11]} 42. g4 {[%clk 0:00:17]}  Rc1 {[%clk 0:00:11]} 43. Rd4 {[%clk 0:00:18]}  Re1 {[%clk 0:00:10]} 44. g5+ {[%clk 0:00:17]}  Ke6 {[%clk 0:00:10]} 45. Re4+ {[%clk 0:00:17]} 1-0


[Site "https://www.chess.com"]